[Event "Challengers Triathlon (GM2)"]
[Site "Biel, CH"]
[Date "2025.07.20"]
[Round "17"]
[White "Theodorou, Nikolas"]
[Black "Navara, David"]
[Result "1-0"]
[Board "1"]
[TimeControl "180+2"]
[WhiteFideId "4262875"]
[BlackFideId "309095"]
[WhiteTitle "GM"]
[BlackTitle "GM"]
[WhiteElo "2549"]
[BlackElo "2646"]
[WhiteTeam "GRE"]
[BlackTeam "CZE"]
[WhiteClock "0:00:13"]
[BlackClock "0:00:12"]
[Variant "Standard"]

1. Nf3 {[%clk 0:03:03]}  d5 {[%clk 0:03:02]} 2. g3 {[%clk 0:03:04]}  Nf6 {[%clk 0:03:03]} 3. Bg2 {[%clk 0:03:05]}  e6 {[%clk 0:03:03]} 4. O-O {[%clk 0:03:04]}  Be7 {[%clk 0:03:03]} 5. d3 {[%clk 0:03:05]}  O-O {[%clk 0:03:00]} 6. a4 {[%clk 0:03:06]}  c5 {[%clk 0:03:00]} 7. e4 {[%clk 0:03:06]}  Nc6 {[%clk 0:02:50]} 8. Qe2 {[%clk 0:03:01]}  dxe4 {[%clk 0:02:43]} 9. dxe4 {[%clk 0:03:02]}  e5 {[%clk 0:02:44]} 10. c3 {[%clk 0:03:01]}  h6 {[%clk 0:02:38]} 11. Nfd2 {[%clk 0:03:01]}  Qc7 {[%clk 0:02:14]} 12. Nc4 {[%clk 0:02:59]}  b6 {[%clk 0:02:10]} 13. f4 {[%clk 0:02:56]}  Bg4 {[%clk 0:01:46]} 14. Qf2 {[%clk 0:02:52]}  Be6 {[%clk 0:01:44]} 15. Nba3 {[%clk 0:02:50]}  a6 {[%clk 0:01:35]} 16. f5 {[%clk 0:02:39]}  Bxc4 {[%clk 0:01:35]} 17. Nxc4 {[%clk 0:02:40]}  b5 {[%clk 0:01:36]} 18. Ne3 {[%clk 0:02:36]}  Na5 {[%clk 0:01:32]} 19. axb5 {[%clk 0:02:27]}  axb5 {[%clk 0:01:32]} 20. Nd5 {[%clk 0:02:25]}  Nxd5 {[%clk 0:01:33]} 21. exd5 {[%clk 0:02:26]}  Qd6 {[%clk 0:01:17]} 22. Qe2 {[%clk 0:02:18]}  c4 {[%clk 0:01:11]} 23. Be3 {[%clk 0:01:07]}  Nb3 {[%clk 0:01:11]} 24. Rxa8 {[%clk 0:01:05]}  Rxa8 {[%clk 0:01:12]} 25. h4 {[%clk 0:00:56]}  Ra2 {[%clk 0:01:07]} 26. f6 {[%clk 0:00:52]}  Bxf6 {[%clk 0:01:06]} 27. Qg4 {[%clk 0:00:52]}  Ra8 {[%clk 0:00:52]} 28. Bxh6 {[%clk 0:00:42]}  Nc5 {[%clk 0:00:48]} 29. Be3 {[%clk 0:00:38]}  Qd7 {[%clk 0:00:42]} 30. Qxd7 {[%clk 0:00:35]}  Nxd7 {[%clk 0:00:43]} 31. d6 {[%clk 0:00:36]}  Ra6 {[%clk 0:00:27]} 32. Rd1 {[%clk 0:00:36]}  Kf8 {[%clk 0:00:30]} 33. Bb7 {[%clk 0:00:31]}  Ra2 {[%clk 0:00:29]} 34. Bc6 {[%clk 0:00:32]}  Ke8 {[%clk 0:00:30]} 35. Bxb5 {[%clk 0:00:31]}  Rxb2 {[%clk 0:00:30]} 36. Bc6 {[%clk 0:00:31]}  Kd8 {[%clk 0:00:16]} 37. Ra1 {[%clk 0:00:32]}  e4 {[%clk 0:00:13]} 38. Ra8+ {[%clk 0:00:21]}  Rb8 {[%clk 0:00:11]} 39. Bb6+ {[%clk 0:00:12]}  Kc8 {[%clk 0:00:12]} 40. Bxd7+ {[%clk 0:00:13]} 1-0

[Event "Challengers Triathlon (GM2)"]
[Site "Biel, CH"]
[Date "2025.07.20"]
[Round "17"]
[White "Jumabayev, Rinat"]
[Black "Ma, Qun"]
[Result "0-1"]
[Board "2"]
[TimeControl "180+2"]
[WhiteFideId "13702661"]
[BlackFideId "8603154"]
[WhiteTitle "GM"]
[BlackTitle "GM"]
[WhiteElo "2520"]
[BlackElo "2614"]
[WhiteTeam "KAZ"]
[BlackTeam "CHN"]
[WhiteClock "0:00:06"]
[BlackClock "0:00:09"]
[Variant "Standard"]

1. d4 {[%clk 0:03:04]}  Nf6 {[%clk 0:03:03]} 2. c4 {[%clk 0:03:05]}  e6 {[%clk 0:03:05]} 3. Nf3 {[%clk 0:03:06]}  d5 {[%clk 0:03:06]} 4. g3 {[%clk 0:03:07]}  Bb4+ {[%clk 0:03:04]} 5. Bd2 {[%clk 0:03:08]}  Be7 {[%clk 0:03:05]} 6. Bg2 {[%clk 0:03:09]}  O-O {[%clk 0:03:06]} 7. O-O {[%clk 0:03:08]}  c6 {[%clk 0:03:07]} 8. Qc2 {[%clk 0:03:07]}  Nbd7 {[%clk 0:03:08]} 9. Rd1 {[%clk 0:03:06]}  a5 {[%clk 0:03:02]} 10. Bf4 {[%clk 0:03:00]}  Nh5 {[%clk 0:02:59]} 11. Bc1 {[%clk 0:02:59]}  a4 {[%clk 0:02:54]} 12. a3 {[%clk 0:02:56]}  f5 {[%clk 0:02:47]} 13. Nc3 {[%clk 0:02:42]}  Qa5 {[%clk 0:02:45]} 14. Bg5 {[%clk 0:02:38]}  Bd6 {[%clk 0:02:37]} 15. c5 {[%clk 0:00:58]}  Bc7 {[%clk 0:02:36]} 16. e3 {[%clk 0:00:57]}  e5 {[%clk 0:02:27]} 17. Be7 {[%clk 0:00:48]}  Re8 {[%clk 0:02:12]} 18. Bd6 {[%clk 0:00:38]}  Bxd6 {[%clk 0:02:09]} 19. cxd6 {[%clk 0:00:39]}  e4 {[%clk 0:02:11]} 20. Nd2 {[%clk 0:00:31]}  Nhf6 {[%clk 0:02:04]} 21. b3 {[%clk 0:00:30]}  axb3 {[%clk 0:02:02]} 22. Nxb3 {[%clk 0:00:31]}  Qd8 {[%clk 0:02:02]} 23. Nc5 {[%clk 0:00:22]}  Nf8 {[%clk 0:02:00]} 24. Rdb1 {[%clk 0:00:23]}  b6 {[%clk 0:01:42]} 25. N5a4 {[%clk 0:00:23]}  b5 {[%clk 0:01:41]} 26. Nc5 {[%clk 0:00:24]}  Qxd6 {[%clk 0:01:42]} 27. a4 {[%clk 0:00:25]}  bxa4 {[%clk 0:01:42]} 28. N3xa4 {[%clk 0:00:23]}  Rb8 {[%clk 0:01:27]} 29. Rxb8 {[%clk 0:00:23]}  Qxb8 {[%clk 0:01:28]} 30. Rb1 {[%clk 0:00:24]}  Qc7 {[%clk 0:01:29]} 31. Qb2 {[%clk 0:00:15]}  N8d7 {[%clk 0:01:23]} 32. Bh3 {[%clk 0:00:14]}  g6 {[%clk 0:01:23]} 33. Bf1 {[%clk 0:00:14]}  Kg7 {[%clk 0:01:19]} 34. Qc3 {[%clk 0:00:14]}  Kh6 {[%clk 0:01:17]} 35. Rc1 {[%clk 0:00:12]}  Nf8 {[%clk 0:01:11]} 36. Rb1 {[%clk 0:00:12]}  g5 {[%clk 0:01:09]} 37. Nb6 {[%clk 0:00:09]}  Be6 {[%clk 0:01:04]} 38. Nba4 {[%clk 0:00:08]}  Bc8 {[%clk 0:00:59]} 39. Nb6 {[%clk 0:00:08]}  Ne6 {[%clk 0:00:53]} 40. Nxc8 {[%clk 0:00:08]}  Qxc8 {[%clk 0:00:54]} 41. Ba6 {[%clk 0:00:06]}  Qd8 {[%clk 0:00:50]} 42. Bb7 {[%clk 0:00:06]}  Nxc5 {[%clk 0:00:32]} 43. Qxc5 {[%clk 0:00:07]}  Re6 {[%clk 0:00:29]} 44. Bxc6 {[%clk 0:00:08]}  Qc8 {[%clk 0:00:23]} 45. Rc1 {[%clk 0:00:10]}  f4 {[%clk 0:00:23]} 46. Bxd5 {[%clk 0:00:08]}  Qxc5 {[%clk 0:00:20]} 47. Rxc5 {[%clk 0:00:09]}  Rd6 {[%clk 0:00:16]} 48. Bc4 {[%clk 0:00:06]}  f3 {[%clk 0:00:16]} 49. h4 {[%clk 0:00:05]}  g4 {[%clk 0:00:11]} 50. Bf1 {[%clk 0:00:05]}  Kg6 {[%clk 0:00:10]} 51. Rc1 {[%clk 0:00:06]}  Rb6 {[%clk 0:00:11]} 52. Rd1 {[%clk 0:00:07]}  Kf7 {[%clk 0:00:11]} 53. Bc4+ {[%clk 0:00:07]}  Ke7 {[%clk 0:00:12]} 54. Ra1 {[%clk 0:00:08]}  Rb2 {[%clk 0:00:13]} 55. Ra7+ {[%clk 0:00:07]}  Kd8 {[%clk 0:00:14]} 56. Ra1 {[%clk 0:00:08]}  Rc2 {[%clk 0:00:11]} 57. Be6 {[%clk 0:00:10]}  Ke7 {[%clk 0:00:11]} 58. Bf5 {[%clk 0:00:11]}  Rc7 {[%clk 0:00:10]} 59. Rd1 {[%clk 0:00:08]}  h6 {[%clk 0:00:10]} 60. Rb1 {[%clk 0:00:08]}  Ra7 {[%clk 0:00:11]} 61. Rc1 {[%clk 0:00:08]}  Ra5 {[%clk 0:00:09]} 62. Bc8 {[%clk 0:00:09]}  Kd6 {[%clk 0:00:11]} 63. Bb7 {[%clk 0:00:10]}  Rb5 {[%clk 0:00:11]} 64. Bc8 {[%clk 0:00:06]}  Rb2 {[%clk 0:00:11]} 65. Kf1 {[%clk 0:00:07]}  h5 {[%clk 0:00:12]} 66. Kg1 {[%clk 0:00:08]}  Re2 {[%clk 0:00:09]} 67. Bf5 {[%clk 0:00:09]}  Rb2 {[%clk 0:00:09]} 68. Ra1 {[%clk 0:00:07]}  Rb5 {[%clk 0:00:08]} 69. Ra6+ {[%clk 0:00:07]}  Ke7 {[%clk 0:00:09]} 70. Ra7+ {[%clk 0:00:08]}  Kd8 {[%clk 0:00:11]} 71. Ra8+ {[%clk 0:00:06]}  Kc7 {[%clk 0:00:12]} 72. Be6 {[%clk 0:00:06]}  Rb6 {[%clk 0:00:12]} 73. Bc4 {[%clk 0:00:06]}  Rc6 {[%clk 0:00:10]} 74. Ra4 {[%clk 0:00:06]}  Nd7 {[%clk 0:00:07]} 75. Ra7+ {[%clk 0:00:05]}  Kb8 {[%clk 0:00:03]} 76. Rxd7 {[%clk 0:00:04]}  Rxc4 {[%clk 0:00:04]} 77. Rd5 {[%clk 0:00:02]}  Rc1+ {[%clk 0:00:05]} 78. Kh2 {[%clk 0:00:07]}  Rf1 {[%clk 0:00:06]} 79. Rb5+ {[%clk 0:00:08]}  Kc7 {[%clk 0:00:07]} 80. Rb2 {[%clk 0:00:09]}  Kc6 {[%clk 0:00:08]} 81. Rc2+ {[%clk 0:00:11]}  Kb5 {[%clk 0:00:09]} 82. Rd2 {[%clk 0:00:07]}  Kc6 {[%clk 0:00:06]} 83. Rc2+ {[%clk 0:00:08]}  Kd6 {[%clk 0:00:07]} 84. Ra2 {[%clk 0:00:08]}  Rc1 {[%clk 0:00:08]} 85. Ra6+ {[%clk 0:00:07]}  Kc7 {[%clk 0:00:09]} 86. Ra2 {[%clk 0:00:07]}  Kc6 {[%clk 0:00:09]} 87. Rb2 {[%clk 0:00:05]}  Rd1 {[%clk 0:00:08]} 88. Rc2+ {[%clk 0:00:06]}  Kb5 {[%clk 0:00:09]} 89. Rc5+ {[%clk 0:00:05]}  Kb4 {[%clk 0:00:11]} 90. Rxh5 {[%clk 0:00:03]}  Rf1 {[%clk 0:00:12]} 91. Rg5 {[%clk 0:00:03]}  Rxf2+ {[%clk 0:00:12]} 92. Kh1 {[%clk 0:00:04]}  Kc4 {[%clk 0:00:10]} 93. d5 {[%clk 0:00:05]}  Rd2 {[%clk 0:00:06]} 94. Kg1 {[%clk 0:00:07]}  Kd3 {[%clk 0:00:07]} 95. h5 {[%clk 0:00:05]}  Kxe3 {[%clk 0:00:08]} 96. h6 {[%clk 0:00:05]}  Rd1+ {[%clk 0:00:06]} 97. Kh2 {[%clk 0:00:07]}  f2 {[%clk 0:00:07]} 98. Rf5 {[%clk 0:00:05]}  f1=Q {[%clk 0:00:08]} 99. Rxf1 {[%clk 0:00:06]}  Rxf1 {[%clk 0:00:09]} 0-1

[Event "Challengers Triathlon (GM2)"]
[Site "Biel, CH"]
[Date "2025.07.20"]
[Round "17"]
[White "Hakobyan, Aram"]
[Black "Dardha, Daniel"]
[Result "1-0"]
[Board "3"]
[TimeControl "180+2"]
[WhiteFideId "13306677"]
[BlackFideId "240990"]
[WhiteTitle "GM"]
[BlackTitle "GM"]
[WhiteElo "2557"]
[BlackElo "2592"]
[WhiteTeam "ARM"]
[BlackTeam "BEL"]
[WhiteClock "0:00:07"]
[BlackClock "0:00:02"]
[Variant "Standard"]

1. d4 {[%clk 0:03:02]}  Nf6 {[%clk 0:03:02]} 2. c4 {[%clk 0:03:03]}  e6 {[%clk 0:03:03]} 3. Nc3 {[%clk 0:03:04]}  d5 {[%clk 0:03:01]} 4. Bg5 {[%clk 0:03:04]}  Be7 {[%clk 0:03:00]} 5. e3 {[%clk 0:03:05]}  h6 {[%clk 0:03:00]} 6. Bh4 {[%clk 0:03:06]}  O-O {[%clk 0:02:57]} 7. Nf3 {[%clk 0:03:07]}  c6 {[%clk 0:02:49]} 8. Rc1 {[%clk 0:03:06]}  Nbd7 {[%clk 0:02:46]} 9. Qc2 {[%clk 0:03:02]}  a6 {[%clk 0:02:37]} 10. cxd5 {[%clk 0:02:58]}  exd5 {[%clk 0:02:33]} 11. Bd3 {[%clk 0:02:57]}  Re8 {[%clk 0:02:10]} 12. O-O {[%clk 0:02:56]}  Nh5 {[%clk 0:02:09]} 13. Bxe7 {[%clk 0:02:54]}  Qxe7 {[%clk 0:02:10]} 14. Rce1 {[%clk 0:02:42]}  Nhf6 {[%clk 0:02:04]} 15. e4 {[%clk 0:02:37]}  dxe4 {[%clk 0:02:00]} 16. Nxe4 {[%clk 0:02:38]}  Qf8 {[%clk 0:01:00]} 17. Nxf6+ {[%clk 0:01:38]}  Nxf6 {[%clk 0:01:59]} 18. Bc4 {[%clk 0:01:34]}  Bg4 {[%clk 0:01:45]} 19. Re3 {[%clk 0:00:49]}  Bxf3 {[%clk 0:01:37]} 20. Rxf3 {[%clk 0:00:50]}  Qe7 {[%clk 0:01:20]} 21. Re3 {[%clk 0:00:49]}  Qd7 {[%clk 0:01:13]} 22. Qd3 {[%clk 0:00:44]}  Nd5 {[%clk 0:01:10]} 23. Re5 {[%clk 0:00:45]}  Re7 {[%clk 0:00:44]} 24. Bxd5 {[%clk 0:00:34]}  cxd5 {[%clk 0:00:31]} 25. h3 {[%clk 0:00:35]}  Rae8 {[%clk 0:00:26]} 26. Rfe1 {[%clk 0:00:35]}  Rxe5 {[%clk 0:00:26]} 27. dxe5 {[%clk 0:00:32]}  Qe6 {[%clk 0:00:16]} 28. f4 {[%clk 0:00:30]}  g6 {[%clk 0:00:17]} 29. Qd4 {[%clk 0:00:27]}  h5 {[%clk 0:00:17]} 30. Rd1 {[%clk 0:00:29]}  Rd8 {[%clk 0:00:15]} 31. Kh2 {[%clk 0:00:30]}  Rd7 {[%clk 0:00:16]} 32. b3 {[%clk 0:00:31]}  Kh7 {[%clk 0:00:16]} 33. Rd2 {[%clk 0:00:33]}  Qf5 {[%clk 0:00:17]} 34. a4 {[%clk 0:00:28]}  Rc7 {[%clk 0:00:17]} 35. Rf2 {[%clk 0:00:21]}  Rd7 {[%clk 0:00:11]} 36. Rf3 {[%clk 0:00:17]}  Qe6 {[%clk 0:00:05]} 37. Rc3 {[%clk 0:00:14]}  Qf5 {[%clk 0:00:06]} 38. Rc5 {[%clk 0:00:10]}  Qe4 {[%clk 0:00:05]} 39. Qxe4 {[%clk 0:00:06]}  dxe4 {[%clk 0:00:06]} 40. Rc4 {[%clk 0:00:07]}  e3 {[%clk 0:00:04]} 41. Kg3 {[%clk 0:00:08]}  Rd3 {[%clk 0:00:04]} 42. Rc7 {[%clk 0:00:08]}  h4+ {[%clk 0:00:03]} 43. Kf3 {[%clk 0:00:09]}  Rxb3 {[%clk 0:00:03]} 44. e6 {[%clk 0:00:10]}  e2+ {[%clk 0:00:03]} 45. Kxe2 {[%clk 0:00:10]}  Rb4 {[%clk 0:00:04]} 46. Kf3 {[%clk 0:00:07]}  Rb3+ {[%clk 0:00:04]} 47. Ke4 {[%clk 0:00:06]}  Kg7 {[%clk 0:00:04]} 48. Rxf7+ {[%clk 0:00:06]}  Kg8 {[%clk 0:00:04]} 49. Ke5 {[%clk 0:00:07]}  Rb4 {[%clk 0:00:04]} 50. Rc7 {[%clk 0:00:04]}  Kf8 {[%clk 0:00:02]} 51. f5 {[%clk 0:00:07]} 1-0

[Event "Challengers Triathlon (GM2)"]
[Site "Biel, CH"]
[Date "2025.07.20"]
[Round "18"]
[White "Navara, David"]
[Black "Hakobyan, Aram"]
[Result "0-1"]
[Board "1"]
[TimeControl "180+2"]
[WhiteFideId "309095"]
[BlackFideId "13306677"]
[WhiteTitle "GM"]
[BlackTitle "GM"]
[WhiteElo "2646"]
[BlackElo "2557"]
[WhiteTeam "CZE"]
[BlackTeam "ARM"]
[WhiteClock "0:00:04"]
[BlackClock "0:00:13"]
[Variant "Standard"]

1. d4 {[%clk 0:03:03]}  Nf6 {[%clk 0:03:03]} 2. c4 {[%clk 0:03:05]}  e6 {[%clk 0:03:04]} 3. Nc3 {[%clk 0:03:06]}  Bb4 {[%clk 0:03:05]} 4. e3 {[%clk 0:03:07]}  O-O {[%clk 0:03:04]} 5. Bd3 {[%clk 0:03:08]}  b6 {[%clk 0:03:02]} 6. e4 {[%clk 0:02:56]}  d5 {[%clk 0:03:03]} 7. cxd5 {[%clk 0:02:50]}  c5 {[%clk 0:03:04]} 8. a3 {[%clk 0:02:38]}  cxd4 {[%clk 0:02:48]} 9. axb4 {[%clk 0:02:38]}  dxc3 {[%clk 0:02:49]} 10. Ne2 {[%clk 0:02:27]}  exd5 {[%clk 0:02:32]} 11. e5 {[%clk 0:02:12]}  Ng4 {[%clk 0:02:33]} 12. bxc3 {[%clk 0:01:20]}  Qh4 {[%clk 0:02:26]} 13. g3 {[%clk 0:01:19]}  Nxe5 {[%clk 0:02:22]} 14. Nf4 {[%clk 0:01:03]}  Nxd3+ {[%clk 0:02:10]} 15. Qxd3 {[%clk 0:01:04]}  Qe7+ {[%clk 0:01:52]} 16. Be3 {[%clk 0:01:04]}  d4 {[%clk 0:01:30]} 17. Qxd4 {[%clk 0:01:04]}  Bb7 {[%clk 0:01:29]} 18. O-O {[%clk 0:01:00]}  Nc6 {[%clk 0:01:30]} 19. Qd1 {[%clk 0:00:38]}  Rfd8 {[%clk 0:00:57]} 20. Qe2 {[%clk 0:00:27]}  Ne5 {[%clk 0:00:54]} 21. f3 {[%clk 0:00:27]}  Qf6 {[%clk 0:00:32]} 22. Bd4 {[%clk 0:00:20]}  Rxd4 {[%clk 0:00:31]} 23. cxd4 {[%clk 0:00:21]}  Nxf3+ {[%clk 0:00:32]} 24. Kf2 {[%clk 0:00:09]}  Nxd4 {[%clk 0:00:26]} 25. Qb2 {[%clk 0:00:09]}  g5 {[%clk 0:00:22]} 26. Rad1 {[%clk 0:00:05]}  Rd8 {[%clk 0:00:23]} 27. Kg1 {[%clk 0:00:04]}  Nf3+ {[%clk 0:00:13]} 0-1

[Event "Challengers Triathlon (GM2)"]
[Site "Biel, CH"]
[Date "2025.07.20"]
[Round "18"]
[White "Dardha, Daniel"]
[Black "Jumabayev, Rinat"]
[Result "1-0"]
[Board "2"]
[TimeControl "180+2"]
[WhiteFideId "240990"]
[BlackFideId "13702661"]
[WhiteTitle "GM"]
[BlackTitle "GM"]
[WhiteElo "2592"]
[BlackElo "2520"]
[WhiteTeam "BEL"]
[BlackTeam "KAZ"]
[WhiteClock "0:00:07"]
[BlackClock "0:00:04"]
[Variant "Standard"]

1. d4 {[%clk 0:03:02]}  Nf6 {[%clk 0:03:00]} 2. Bg5 {[%clk 0:03:02]}  e6 {[%clk 0:02:54]} 3. e4 {[%clk 0:03:03]}  h6 {[%clk 0:02:54]} 4. Bxf6 {[%clk 0:03:03]}  Qxf6 {[%clk 0:02:54]} 5. e5 {[%clk 0:03:04]}  Qd8 {[%clk 0:02:54]} 6. Qg4 {[%clk 0:03:04]}  c5 {[%clk 0:02:49]} 7. dxc5 {[%clk 0:03:02]}  Qg5 {[%clk 0:02:33]} 8. Qxg5 {[%clk 0:02:40]}  hxg5 {[%clk 0:02:33]} 9. Nc3 {[%clk 0:02:24]}  Bxc5 {[%clk 0:02:05]} 10. Ne4 {[%clk 0:02:02]}  Bd4 {[%clk 0:02:01]} 11. Nf3 {[%clk 0:01:48]}  Bxb2 {[%clk 0:01:54]} 12. Rb1 {[%clk 0:01:49]}  Ba3 {[%clk 0:01:35]} 13. Nfxg5 {[%clk 0:01:48]}  Nc6 {[%clk 0:01:27]} 14. f4 {[%clk 0:01:48]}  d5 {[%clk 0:00:39]} 15. exd6 {[%clk 0:01:37]}  f5 {[%clk 0:00:38]} 16. Rb3 {[%clk 0:01:22]}  Nd4 {[%clk 0:00:38]} 17. Rxa3 {[%clk 0:01:13]}  Nxc2+ {[%clk 0:00:39]} 18. Kf2 {[%clk 0:01:06]}  Nxa3 {[%clk 0:00:40]} 19. Nc5 {[%clk 0:01:05]}  b6 {[%clk 0:00:09]} 20. Ncxe6 {[%clk 0:00:45]}  Bxe6 {[%clk 0:00:10]} 21. Nxe6 {[%clk 0:00:46]}  Kf7 {[%clk 0:00:10]} 22. Ng5+ {[%clk 0:00:47]}  Kf6 {[%clk 0:00:09]} 23. Be2 {[%clk 0:00:40]}  Rhd8 {[%clk 0:00:05]} 24. Rd1 {[%clk 0:00:36]}  Rac8 {[%clk 0:00:05]} 25. Bf3 {[%clk 0:00:24]}  Nc4 {[%clk 0:00:05]} 26. d7 {[%clk 0:00:23]}  Rc7 {[%clk 0:00:06]} 27. Re1 {[%clk 0:00:24]}  g6 {[%clk 0:00:05]} 28. Re6+ {[%clk 0:00:09]}  Kg7 {[%clk 0:00:06]} 29. Bc6 {[%clk 0:00:06]}  Rdxd7 {[%clk 0:00:06]} 30. Bxd7 {[%clk 0:00:06]}  Rxd7 {[%clk 0:00:07]} 31. Nf3 {[%clk 0:00:04]}  Nd6 {[%clk 0:00:07]} 32. Ne5 {[%clk 0:00:04]}  Ne4+ {[%clk 0:00:08]} 33. Ke3 {[%clk 0:00:05]}  Rd6 {[%clk 0:00:09]} 34. Re7+ {[%clk 0:00:05]}  Kf8 {[%clk 0:00:09]} 35. Rxa7 {[%clk 0:00:06]}  Nc3 {[%clk 0:00:08]} 36. g3 {[%clk 0:00:04]}  Nd1+ {[%clk 0:00:08]} 37. Kf3 {[%clk 0:00:06]}  Nc3 {[%clk 0:00:09]} 38. a3 {[%clk 0:00:06]}  b5 {[%clk 0:00:10]} 39. g4 {[%clk 0:00:05]}  fxg4+ {[%clk 0:00:10]} 40. Kxg4 {[%clk 0:00:06]}  Ne4 {[%clk 0:00:04]} 41. Rb7 {[%clk 0:00:05]}  Nf6+ {[%clk 0:00:03]} 42. Kf3 {[%clk 0:00:06]}  Nd5 {[%clk 0:00:04]} 43. Rxb5 {[%clk 0:00:07]}  Ne7 {[%clk 0:00:04]} 44. Rb8+ {[%clk 0:00:06]}  Kg7 {[%clk 0:00:06]} 45. Rb7 {[%clk 0:00:07]}  Kf6 {[%clk 0:00:07]} 46. Nd7+ {[%clk 0:00:08]}  Kf5 {[%clk 0:00:03]} 47. Nc5 {[%clk 0:00:09]}  Nd5 {[%clk 0:00:03]} 48. Rf7+ {[%clk 0:00:10]}  Nf6 {[%clk 0:00:05]} 49. a4 {[%clk 0:00:07]}  Rd5 {[%clk 0:00:06]} 50. Rc7 {[%clk 0:00:03]}  Rd4 {[%clk 0:00:07]} 51. a5 {[%clk 0:00:04]}  Rxf4+ {[%clk 0:00:07]} 52. Ke2 {[%clk 0:00:06]}  Rh4 {[%clk 0:00:07]} 53. a6 {[%clk 0:00:06]}  Rxh2+ {[%clk 0:00:08]} 54. Kd3 {[%clk 0:00:07]}  Ra2 {[%clk 0:00:09]} 55. Kc4 {[%clk 0:00:06]}  g5 {[%clk 0:00:10]} 56. a7 {[%clk 0:00:05]}  g4 {[%clk 0:00:11]} 57. Kb5 {[%clk 0:00:05]}  Nd5 {[%clk 0:00:08]} 58. Rf7 {[%clk 0:00:05]}  Kg6 {[%clk 0:00:08]} 59. Rd7 {[%clk 0:00:04]}  g3 {[%clk 0:00:06]} 60. Na6 {[%clk 0:00:04]}  Rb2+ {[%clk 0:00:05]} 61. Kc5 {[%clk 0:00:05]}  Nb6 {[%clk 0:00:06]} 62. Rd6+ {[%clk 0:00:05]}  Kf5 {[%clk 0:00:05]} 63. Rxb6 {[%clk 0:00:06]}  Rxb6 {[%clk 0:00:06]} 64. a8=Q {[%clk 0:00:04]}  Rg6 {[%clk 0:00:05]} 65. Qf3 {[%clk 0:00:07]}  Ke5 {[%clk 0:00:03]} 66. Nb4 {[%clk 0:00:06]}  g2 {[%clk 0:00:04]} 67. Nd3 {[%clk 0:00:07]} 1-0

[Event "Challengers Triathlon (GM2)"]
[Site "Biel, CH"]
[Date "2025.07.20"]
[Round "18"]
[White "Ma, Qun"]
[Black "Theodorou, Nikolas"]
[Result "0-1"]
[Board "3"]
[TimeControl "180+2"]
[WhiteFideId "8603154"]
[BlackFideId "4262875"]
[WhiteTitle "GM"]
[BlackTitle "GM"]
[WhiteElo "2614"]
[BlackElo "2549"]
[WhiteTeam "CHN"]
[BlackTeam "GRE"]
[WhiteClock "0:00:26"]
[BlackClock "0:01:19"]
[Variant "Standard"]

1. e4 {[%clk 0:03:03]}  e5 {[%clk 0:03:03]} 2. Nf3 {[%clk 0:03:04]}  Nc6 {[%clk 0:03:04]} 3. Bb5 {[%clk 0:03:05]}  a6 {[%clk 0:03:05]} 4. Ba4 {[%clk 0:03:06]}  f5 {[%clk 0:03:06]} 5. d4 {[%clk 0:02:55]}  exd4 {[%clk 0:03:07]} 6. e5 {[%clk 0:02:49]}  b5 {[%clk 0:03:08]} 7. Bb3 {[%clk 0:02:51]}  Bb7 {[%clk 0:03:09]} 8. O-O {[%clk 0:02:40]}  Na5 {[%clk 0:03:10]} 9. Bxg8 {[%clk 0:02:04]}  Rxg8 {[%clk 0:03:08]} 10. Nxd4 {[%clk 0:02:06]}  Qe7 {[%clk 0:03:06]} 11. Nxf5 {[%clk 0:01:54]}  Qf7 {[%clk 0:02:56]} 12. Ng3 {[%clk 0:01:51]}  O-O-O {[%clk 0:02:48]} 13. Nc3 {[%clk 0:01:36]}  Nc4 {[%clk 0:02:49]} 14. a4 {[%clk 0:01:15]}  b4 {[%clk 0:02:45]} 15. Nce4 {[%clk 0:01:16]}  Nxe5 {[%clk 0:02:45]} 16. Be3 {[%clk 0:01:09]}  h5 {[%clk 0:02:14]} 17. Qxh5 {[%clk 0:01:06]}  Qxh5 {[%clk 0:02:10]} 18. Nxh5 {[%clk 0:01:05]}  Bxe4 {[%clk 0:01:58]} 19. Rac1 {[%clk 0:00:51]}  Re8 {[%clk 0:02:09]} 20. Rfe1 {[%clk 0:00:51]}  Bd6 {[%clk 0:01:58]} 21. Bd4 {[%clk 0:00:49]}  Bc6 {[%clk 0:01:28]} 22. f4 {[%clk 0:00:48]}  Ng4 {[%clk 0:01:23]} 23. Bxg7 {[%clk 0:00:26]}  Bc5+ {[%clk 0:01:19]} 0-1

[Event "Challengers Triathlon (GM2)"]
[Site "Biel, CH"]
[Date "2025.07.20"]
[Round "19"]
[White "Ma, Qun"]
[Black "Navara, David"]
[Result "0-1"]
[Board "1"]
[TimeControl "180+2"]
[WhiteFideId "8603154"]
[BlackFideId "309095"]
[WhiteTitle "GM"]
[BlackTitle "GM"]
[WhiteElo "2614"]
[BlackElo "2646"]
[WhiteTeam "CHN"]
[BlackTeam "CZE"]
[WhiteClock "0:00:03"]
[BlackClock "0:00:06"]
[Variant "Standard"]

1. e4 {[%clk 0:03:03]}  e5 {[%clk 0:03:02]} 2. Nf3 {[%clk 0:03:04]}  Nc6 {[%clk 0:03:03]} 3. Bb5 {[%clk 0:03:05]}  Nf6 {[%clk 0:03:04]} 4. O-O {[%clk 0:03:05]}  Nxe4 {[%clk 0:03:04]} 5. d4 {[%clk 0:03:05]}  Nd6 {[%clk 0:03:05]} 6. Bg5 {[%clk 0:03:05]}  Be7 {[%clk 0:03:04]} 7. Bxe7 {[%clk 0:03:05]}  Qxe7 {[%clk 0:03:04]} 8. Nxe5 {[%clk 0:03:00]}  O-O {[%clk 0:03:01]} 9. Re1 {[%clk 0:03:00]}  Qh4 {[%clk 0:02:41]} 10. Nf3 {[%clk 0:02:47]}  Qh5 {[%clk 0:02:39]} 11. Bd3 {[%clk 0:02:38]}  b6 {[%clk 0:02:34]} 12. Nbd2 {[%clk 0:02:30]}  Bb7 {[%clk 0:02:34]} 13. c3 {[%clk 0:02:26]}  Rae8 {[%clk 0:02:27]} 14. Qc2 {[%clk 0:02:15]}  f6 {[%clk 0:02:27]} 15. h3 {[%clk 0:01:46]}  Ne7 {[%clk 0:02:23]} 16. Qa4 {[%clk 0:01:38]}  Bc6 {[%clk 0:02:13]} 17. Qb3+ {[%clk 0:01:08]}  Qf7 {[%clk 0:01:50]} 18. c4 {[%clk 0:01:03]}  Ng6 {[%clk 0:01:51]} 19. c5 {[%clk 0:00:56]}  Bd5 {[%clk 0:01:50]} 20. Qc2 {[%clk 0:00:55]}  Nb7 {[%clk 0:01:34]} 21. b4 {[%clk 0:00:56]}  Nd8 {[%clk 0:01:35]} 22. a3 {[%clk 0:00:54]}  Ne6 {[%clk 0:01:33]} 23. Bc4 {[%clk 0:00:42]}  Nef4 {[%clk 0:01:26]} 24. h4 {[%clk 0:00:37]}  Ne7 {[%clk 0:00:59]} 25. g3 {[%clk 0:00:35]}  Bxc4 {[%clk 0:00:55]} 26. Qxc4 {[%clk 0:00:31]}  Qxc4 {[%clk 0:00:48]} 27. Nxc4 {[%clk 0:00:32]}  Nfd5 {[%clk 0:00:49]} 28. Ne3 {[%clk 0:00:12]}  h5 {[%clk 0:00:46]} 29. Kf1 {[%clk 0:00:11]}  Kf7 {[%clk 0:00:47]} 30. b5 {[%clk 0:00:09]}  Nxe3+ {[%clk 0:00:44]} 31. Rxe3 {[%clk 0:00:11]}  Nd5 {[%clk 0:00:44]} 32. Rxe8 {[%clk 0:00:11]}  Rxe8 {[%clk 0:00:45]} 33. a4 {[%clk 0:00:12]}  a6 {[%clk 0:00:32]} 34. cxb6 {[%clk 0:00:10]}  cxb6 {[%clk 0:00:33]} 35. Rb1 {[%clk 0:00:06]}  Ra8 {[%clk 0:00:24]} 36. Nd2 {[%clk 0:00:06]}  Nc3 {[%clk 0:00:18]} 37. Rc1 {[%clk 0:00:04]}  Nxa4 {[%clk 0:00:18]} 38. bxa6 {[%clk 0:00:05]}  Rxa6 {[%clk 0:00:18]} 39. Rc7 {[%clk 0:00:05]}  Ke6 {[%clk 0:00:15]} 40. Rc8 {[%clk 0:00:04]}  b5 {[%clk 0:00:14]} 41. Rg8 {[%clk 0:00:04]}  Kf7 {[%clk 0:00:15]} 42. Rd8 {[%clk 0:00:05]}  Nb6 {[%clk 0:00:13]} 43. Rb8 {[%clk 0:00:06]}  Nc4 {[%clk 0:00:09]} 44. Ne4 {[%clk 0:00:03]}  Re6 {[%clk 0:00:08]} 45. Nc3 {[%clk 0:00:04]}  Nd2+ {[%clk 0:00:05]} 46. Kg2 {[%clk 0:00:05]}  Ne4 {[%clk 0:00:06]} 47. Nxb5 {[%clk 0:00:06]}  Rc6 {[%clk 0:00:05]} 48. Kf3 {[%clk 0:00:06]}  d5 {[%clk 0:00:06]} 49. Rb7+ {[%clk 0:00:03]}  Kg6 {[%clk 0:00:06]} 50. Nc7 {[%clk 0:00:03]}  Rc3+ {[%clk 0:00:06]} 51. Kf4 {[%clk 0:00:03]}  Nxf2 {[%clk 0:00:06]} 52. g4 {[%clk 0:00:03]}  Nh3# {[%clk 0:00:06]} 0-1